bitfinex-derivatives/quotes_SOLF0:USTF0_20241120
["timestamp","ask_amount","ask_price","bid_price","bid_amount"]
[1732083544359,2.1265,234.88,234.83,2.1269]
[1732083545156,2.1266,234.87,234.83,2.1269]
[1732083545657,2.1266,234.87,234.82,2.127]
[1732083545959,6.68169516,234.9,234.81,8.82169516]
[1732083546160,6.68169516,234.9,234.81,2.14]
[1732083546361,2.1266,234.87,234.81,2.14]
[1732083546860,2.1266,234.87,234.83,2.1269]
[1732083549156,2.1267,234.86,234.82,2.127]
[1732083549361,6.68169516,234.9,234.81,2.14]
[1732083549866,6.68169516,234.88,234.81,2.127]
[1732083550067,6.68169516,234.88,234.79,2.14]
[1732083550260,6.68169516,234.88,234.79,8.82169516]
[1732083550567,6.68169516,234.88,234.81,2.1271]
[1732083550767,6.68169516,234.88,234.79,8.82169516]
[1732083551067,2.1267,234.86,234.81,2.1271]
[1732083551264,6.68169516,234.88,234.81,2.1271]
[1732083551464,6.68169516,234.88,234.79,6.68169516]
[1732083551659,2.1268,234.85,234.8,2.1272]
[1732083551964,6.68169516,234.88,234.79,8.82169516]
[1732083552566,2.1267,234.85,234.81,2.1271]
[1732083553064,6.68169516,234.88,234.79,8.82169516]
[1732083553364,2.1267,234.86,234.81,6.68169516]
[1732083553769,6.68169516,234.89,234.81,6.68169516]
[1732083553971,6.68169516,234.89,234.81,8.80879516]
[1732083554666,2.1267,234.86,234.81,8.80879516]
[1732083554865,6.68169516,234.89,234.81,6.68169516]
[1732083555067,6.68169516,234.89,234.8,2.1272]
[1732083555366,6.68169516,234.83,234.74,8.82169516]
[1732083555571,6.68169516,234.83,234.74,2.14]
[1732083555769,2.1271,234.81,234.75,2.1276]
[1732083555968,4.2414747,234.81,234.75,2.1276]
[1732083556769,4.2414747,234.81,234.76,2.1275]
[1732083557272,2.1274,234.78,234.74,2.14]
[1732083557573,2.1274,234.78,234.73,2.33655]
[1732083558374,6.68169516,234.77,234.73,0.20875]
[1732083559370,2.1277,234.75,234.73,0.20875]
[1732083560366,2.1277,234.74,234.73,0.20875]
[1732083563471,6.68169516,234.75,234.67,10.94999516]
[1732083563674,2.1279,234.73,234.67,10.94999516]
[1732083564569,2.1279,234.73,234.67,4.2683]
[1732083564965,2.1279,234.73,234.67,10.94999516]
[1732083565167,2.1281,234.71,234.65,4.2685]
[1732083565370,2.1281,234.71,234.65,10.95019516]
[1732083565573,6.68169516,234.73,234.65,8.82169516]
[1732083567178,6.68169516,234.73,234.63,0.32817]
[1732083567179,2.128,234.71,234.63,0.32817]
[1732083567481,6.68169516,234.66,234.63,0.32817]
[1732083567779,6.68169516,234.64,234.63,0.32817]
[1732083568370,8.81029516,234.64,234.63,0.32817]
[1732083569274,6.68169516,234.64,234.63,0.32817]
[1732083569582,8.7644717,234.65,234.63,0.32817]
[1732083569878,6.68169516,234.65,234.63,0.32817]
[1732083570279,2.15520035,234.64,234.63,0.32817]
[1732083571177,6.68169516,234.7,234.63,0.32817]
[1732083571878,2.13730426,234.69,234.64,2.1286]
[1732083572483,2.13730426,234.69,234.63,0.32817]
[1732083572775,2.1281,234.71,234.65,2.1285]
[1732083572776,6.68169516,234.7,234.65,2.1285]
[1732083572974,2.10447202,234.69,234.65,2.1285]
[1732083573174,1.0,234.72,234.67,2.1284]
[1732083574385,3.1279,234.72,234.67,2.1284]
[1732083574976,3.1279,234.72,234.64,6.68169516]
[1732083574977,3.1279,234.72,234.66,2.1285]
[1732083578884,2.128,234.71,234.65,2.1285]
[1732083580383,2.128,234.71,234.65,4.2685]
[1732083583085,1.0,234.72,234.7,2.1281]
[1732083583284,7.91249516,234.8,234.7,6.68169516]
[1732083583486,7.91249516,234.8,234.72,6.68169516]
[1732083583684,2.1275,234.77,234.72,6.68169516]
[1732083583882,6.68169516,234.8,234.72,6.68169516]
[1732083584192,2.1276,234.76,234.72,6.68169516]
[1732083585293,2.1276,234.76,234.7,2.14]
[1732083585294,2.1276,234.76,234.71,2.128]
[1732083587393,2.1143747,234.81,234.74,6.68169516]
[1732083587589,2.14,234.84,234.76,6.68169516]
[1732083587797,2.11558703,234.82,234.76,6.68169516]
[1732083588392,2.11558703,234.82,234.78,6.68169516]
[1732083588987,4.24258703,234.82,234.78,6.68169516]
[1732083589891,2.5013,234.86,234.78,6.68169516]
[1732083590088,2.1267,234.86,234.8,8.80889516]
[1732083590288,2.1267,234.86,234.75,2.14]
[1732083590289,2.14,234.9,234.82,6.68169516]
[1732083590491,6.68169516,234.92,234.84,6.68169516]
[1732083590997,6.68169516,234.9,234.83,2.14]
[1732083591192,6.68169516,234.89,234.83,2.14]
[1732083592801,2.5255,234.93,234.83,2.14]
[1732083593003,6.68169516,234.9,234.83,2.14]
[1732083594506,2.1266,234.87,234.83,2.14]
[1732083594997,2.1267,234.86,234.8,6.68169516]
[1732083596505,2.1267,234.86,234.8,8.80889516]
[1732083599007,6.68169516,234.86,234.76,3.6844]
[1732083599313,6.68169516,234.86,234.77,6.68169516]
[1732083599906,2.127,234.82,234.77,2.1274]
[1732083600114,4.26804879,234.82,234.77,2.1274]
[1732083600314,2.127,234.82,234.77,2.1274]
[1732083600508,2.1271,234.81,234.76,10.01609516]
[1732083600707,2.1271,234.81,234.76,1.1944]
[1732083601003,8.84126366,234.81,234.72,6.68169516]
[1732083601208,6.68169516,234.79,234.72,6.68169516]
[1732083601404,2.08740549,234.78,234.72,6.68169516]
[1732083601910,2.1276,234.76,234.72,6.68169516]
[1732083603711,2.1275,234.77,234.72,6.68169516]
[1732083604403,2.09268187,234.76,234.72,6.68169516]
[1732083604608,4.22028187,234.76,234.71,2.128]
[1732083604809,6.68169516,234.8,234.72,2.1279]
[1732083605009,8.8256933,234.8,234.72,2.1279]
[1732083605210,2.1275,234.77,234.71,6.68169516]
[1732083606007,8.8256933,234.8,234.71,6.68169516]
[1732083606210,2.1276,234.76,234.71,8.80969516]
[1732083608004,2.1276,234.76,234.71,2.128]
[1732083609415,2.1277,234.75,234.7,2.37362]
[1732083609813,6.68169516,234.78,234.7,2.37362]
[1732083610009,2.14399814,234.8,234.71,6.68169516]
[1732083610210,1.1949,234.82,234.73,6.68169516]
[1732083610517,2.09557356,234.82,234.77,6.68169516]
[1732083610815,8.82169516,234.87,234.8,2.1272]
[1732083611207,8.82169516,234.87,234.77,2.14]
[1732083611515,8.82169516,234.87,234.78,6.68169516]
[1732083612009,2.1268,234.84,234.77,4.2674]
[1732083612213,6.68169516,234.85,234.77,4.2674]
[1732083612714,2.1269,234.83,234.77,4.2674]
[1732083614818,2.11693056,234.82,234.77,4.2674]
[1732083615016,4.24393056,234.82,234.77,2.14]
[1732083616124,4.24393056,234.82,234.76,8.80919516]
[1732083616419,2.11693056,234.82,234.71,2.4898]
[1732083616623,8.80899516,234.79,234.72,2.14]
[1732083616814,8.85768767,234.79,234.72,4.2679]
[1732083617219,2.1275,234.78,234.72,4.2679]
[1732083618421,2.1275,234.78,234.73,2.1278]
[1732083623626,2.1275,234.77,234.72,2.14]
[1732083625430,2.1276,234.76,234.72,2.14]
[1732083628326,2.1276,234.76,234.71,8.80969516]
[1732083629328,2.1275,234.77,234.71,8.80969516]
[1732083629530,8.85768767,234.79,234.71,8.80969516]
[1732083630230,8.85768767,234.79,234.7,2.14]
[1732083630231,8.85768767,234.79,234.7,4.2681]
[1732083630434,8.85768767,234.79,234.7,2.14]
[1732083630931,2.1276,234.76,234.71,2.128]
[1732083632229,2.1276,234.75,234.71,2.128]
[1732083635334,6.68169516,234.72,234.63,0.30826]
[1732083635636,6.68169516,234.75,234.67,6.68169516]
[1732083635935,2.1278,234.74,234.69,6.68169516]
[1732083636635,4.24873746,234.74,234.69,6.68169516]
[1732083637232,4.24873746,234.74,234.67,6.68169516]
[1732083637638,2.12093746,234.74,234.67,6.68169516]
[1732083637837,2.128,234.71,234.67,6.68169516]
[1732083638132,4.30388293,234.71,234.67,6.68169516]
[1732083638340,2.1281,234.7,234.65,8.81019516]
[1732083642338,6.68169516,234.71,234.63,6.68169516]
[1732083643244,2.14,234.72,234.54,6.68169516]
[1732083643245,6.68169516,234.64,234.54,6.68169516]
[1732083643440,8.82169516,234.64,234.54,6.68169516]
[1732083643640,6.68169516,234.62,234.54,6.68169516]
[1732083643841,2.07805962,234.61,234.54,6.68169516]
[1732083644343,2.07805962,234.61,234.55,2.1295]
[1732083644344,4.20695962,234.61,234.55,2.1295]
[1732083644842,4.20695962,234.61,234.57,0.37298]
[1732083645435,2.14,234.65,234.57,0.37298]
[1732083645639,8.82169516,234.65,234.57,0.37298]
[1732083646441,2.1287,234.64,234.58,2.1292]
[1732083646742,8.82169516,234.69,234.6,6.68169516]
[1732083646941,2.14,234.69,234.62,6.68169516]
[1732083647145,7.68169516,234.7,234.62,6.68169516]
[1732083648443,2.1282,234.69,234.63,2.1287]
[1732083648845,2.1282,234.69,234.62,6.68169516]
[1732083649148,2.1282,234.69,234.64,2.1286]
[1732083649941,7.68169516,234.7,234.64,2.1286]
[1732083649942,9.80979516,234.7,234.64,2.1286]
[1732083650446,7.68169516,234.7,234.61,2.1289]
[1732083650636,7.68169516,234.7,234.62,6.68169516]
[1732083651146,2.1283,234.68,234.62,8.81049516]
[1732083652041,7.68169516,234.7,234.61,2.1289]
[1732083652042,2.1284,234.67,234.61,2.1289]
[1732083652342,6.68169516,234.68,234.6,6.68169516]
[1732083652849,2.1285,234.66,234.6,8.81069516]
[1732083653150,2.1285,234.66,234.6,6.68169516]
[1732083654345,2.1285,234.66,234.61,2.1289]
[1732083654545,2.1284,234.67,234.62,6.68169516]
[1732083654848,1.0,234.7,234.64,6.68169516]
[1732083656246,3.1281,234.7,234.64,8.81029516]
[1732083657342,2.1282,234.69,234.64,8.81029516]
[1732083658041,1.0,234.7,234.59,1.1985]
[1732083658248,6.68169516,234.67,234.6,6.68169516]
[1732083658447,6.68169516,234.69,234.6,6.68169516]
[1732083658753,2.1285,234.66,234.6,6.68169516]
[1732083658947,2.1285,234.66,234.61,6.68169516]
[1732083660249,2.1285,234.66,234.61,8.81049516]
[1732083662246,2.1284,234.67,234.61,8.81049516]
[1732083663850,2.1284,234.67,234.62,2.1288]
[1732083665847,2.1283,234.68,234.62,2.1288]
[1732083666046,1.0,234.7,234.65,8.81019516]
[1732083666252,1.0,234.7,234.65,6.68169516]
[1732083666655,3.1281,234.7,234.65,8.81019516]
[1732083666951,5.21130255,234.7,234.65,8.81019516]
[1732083669153,3.08320255,234.7,234.65,6.68169516]
[1732083669355,6.68169516,234.69,234.61,6.68169516]
[1732083670247,2.1284,234.67,234.61,6.68169516]
[1732083670546,3.08320255,234.7,234.63,6.68169516]
[1732083670747,3.08320255,234.7,234.65,6.68169516]
[1732083671454,3.08320255,234.7,234.65,8.81019516]
[1732083671649,177.42243653,234.84,234.59,1.1985]
[1732083671650,236.89775087,234.97,234.71,12.78]
[1732083671856,150.4303952,235.32,234.96,6.68169516]
[1732083672152,352.3324743,235.51,234.73,12.78]
[1732083672153,293.6103952,235.78,234.97,25.33206694]
[1732083672356,6.68169516,235.47,234.99,12.78]
[1732083672548,2.1217,235.42,235.28,6.68169516]
[1732083672752,2.1217,235.42,234.98,40.56157153]
[1732083672753,10.39686101,235.35,235.29,9.49636919]
[1732083672954,2.2506,235.41,235.29,7.52986919]
[1732083673161,10.39686101,235.38,235.3,5.14456253]
[1732083673452,3.34,235.37,235.3,7.58725336]
[1732083673658,10.39686101,235.38,235.31,1.66351201]
[1732083673955,10.39686101,235.34,235.3,5.92374135]
[1732083674257,3.34,235.33,235.31,3.95754135]
[1732083674456,2.1226,235.31,235.25,289.158122]
[1732083674756,10.39686101,235.34,235.23,115.6632488]
[1732083674757,10.39686101,235.26,235.23,115.6632488]
[1732083674956,3.34,235.25,235.22,23.13264976]
[1732083675157,3.34,235.25,235.09,2.44269083]
[1732083675354,4.34,235.25,235.04,45.59438354]
[1732083675761,4.34,235.25,235.04,12.52176101]
[1732083675959,10.39686101,235.22,235.04,12.52176101]
[1732083676356,2.1235,235.21,235.04,12.52176101]
[1732083676557,3.1235,235.21,235.04,12.52176101]
[1732083676861,3.1235,235.21,235.03,17.92845414]
[1732083677155,3.1235,235.21,235.05,2.1248]
[1732083677758,6.4635,235.21,235.05,2.1248]
[1732083678756,4.34,235.21,235.05,1712.70898018]
[1732083679057,4.34,235.21,235.05,1278.97179718]
[1732083679259,4.34,235.21,235.05,1105.47692398]
[1732083679961,4.34,235.21,235.05,874.15042638]
[1732083680259,2.1239,235.16,235.05,874.15042638]
[1732083680453,2.1239,235.16,235.05,642.82392878]
[1732083681052,1.0,235.15,235.05,356.35969409]
[1732083681254,1.0,235.15,235.09,16.66525414]
[1732083681856,16.66525414,235.36,235.13,16.66525414]
[1732083682056,5.4628,235.3,235.17,16.66525414]
[1732083682354,16.66525414,235.36,235.19,2.1237]
[1732083682355,30.62,235.34,235.19,2.1237]
[1732083682559,3.34,235.3,235.13,16.66525414]
[1732083682755,3.13217735,235.29,235.13,16.66525414]
[1732083683262,2.1229,235.28,235.13,16.66525414]
[1732083683460,2.1229,235.28,235.14,3.75024709]
[1732083683661,2.1229,235.28,235.13,16.66525414]
[1732083683959,1.0,235.27,235.14,3.74650514]
[1732083684168,1.0,235.27,235.15,2.99601708]
[1732083684361,3.34,235.26,235.16,2.99601708]
[1732083684565,3.34,235.26,235.17,2.99601708]
[1732083684864,3.34,235.25,235.18,2.99601708]
[1732083685061,3.34,235.24,235.19,2.99601708]
[1732083685259,3.34,235.24,235.2,2.99601708]
[1732083685459,3.34,235.24,235.21,2.99601708]
[1732083685661,1.0,235.25,235.22,2.99601708]
[1732083685855,3.34,235.42,235.23,2.98690386]
[1732083686060,30.62,235.58,235.3,16.66525414]
[1732083686061,3.34,235.41,235.3,16.66525414]
[1732083686265,12.77,235.55,235.3,16.66525414]
[1732083686266,3.34,235.4,235.33,2.1224]
[1732083686661,3.34,235.4,235.34,4.83658678]
[1732083687564,3.34,235.4,235.35,4.83593615]
[1732083687866,5.4618,235.4,235.36,1.85984549]
[1732083688064,5.4618,235.4,235.37,1.85984549]
[1732083688260,5.4618,235.4,235.34,4.83658678]
[1732083688261,1.0,235.39,235.34,4.83658678]
[1732083688460,3.1219,235.39,235.35,1.85542947]
[1732083688764,1.0,235.39,235.35,1.85542947]
[1732083689060,30.6,235.38,235.35,1.85542947]
[1732083689463,30.6,235.38,235.34,4.83658678]
[1732083689464,32.722,235.38,235.34,4.83658678]
[1732083689665,30.6,235.38,235.34,4.83658678]
[1732083689964,2.1222,235.36,235.34,4.83658678]
[1732083690557,2.1222,235.36,235.34,0.54662627]
[1732083690957,29.43525414,235.35,235.34,0.54662627]
[1732083691165,2.1226,235.32,235.22,2.5191]
[1732083691357,3.32,235.31,235.22,2.5191]
[1732083691762,2.1228,235.29,235.22,2.5191]
[1732083692263,1.0,235.3,235.22,4.6424]
[1732083692464,3.32,235.29,235.22,4.6424]
[1732083694666,3.32,235.29,235.22,2.5191]
[1732083699366,3.32,235.29,235.23,2.1232]
[1732083699767,3.32,235.28,235.23,2.1232]
[1732083700066,3.32,235.27,235.23,2.1232]
[1732083700267,1.0,235.3,235.24,2.1232]
[1732083700466,3.32,235.26,235.24,2.1232]
[1732083702370,1.0,235.3,235.24,2.1232]
[1732083702566,3.32,235.29,235.24,2.1232]
[1732083704374,3.32,235.29,235.22,4.6425]
[1732083704671,3.32,235.29,235.23,1.8050265]
[1732083704872,3.32,235.29,235.24,1.80503592]
[1732083705075,3.32,235.29,235.22,4.6425]
[1732083705076,5.4428,235.29,235.22,4.6425]
[1732083705472,5.4428,235.29,235.23,1.8058964]
[1732083705680,2.1228,235.29,235.22,4.6425]
[1732083705874,3.22,235.28,235.24,16.66525414]
[1732083706072,3.22,235.27,235.25,1.80550957]
[1732083706376,2.1223,235.35,235.28,2.1228]
[1732083706573,2.1223,235.35,235.29,1.80494349]
[1732083706574,3.22,235.34,235.29,1.80494349]
[1732083706777,3.22,235.34,235.3,1.8062665]
[1732083706978,3.22,235.34,235.28,18.78805414]
[1732083707172,3.22,235.34,235.29,1.80620698]
[1732083707373,2.1223,235.35,235.3,1.80620698]
[1732083707570,3.22,235.34,235.28,18.78805414]
[1732083707974,3.22,235.34,235.28,2.1228]
[1732083708274,5.3423,235.34,235.29,1.80835369]
[1732083708472,5.3423,235.34,235.3,1.80835369]
[1732083708675,3.22,235.34,235.26,16.66525414]
[1732083708881,2.1226,235.31,235.27,1.8109816]
[1732083709080,2.1226,235.31,235.28,1.8109816]
[1732083709276,2.1226,235.31,235.29,1.8109816]
[1732083709479,2.1226,235.31,235.3,1.8109816]
[1732083710184,2.1227,235.3,235.24,2.1232]
[1732083710384,2.28713101,235.38,235.25,4.65272698]
[1732083710585,33.82,235.37,235.26,6.77572698]
[1732083710774,33.82,235.37,235.27,4.65272698]
[1732083710975,33.82,235.37,235.28,1.78751729]
[1732083711176,33.82,235.37,235.29,1.78751729]
[1732083711485,33.82,235.37,235.26,2.123]
[1732083711679,1.0,235.36,235.3,1.7903925]
[1732083711883,2.1223,235.35,235.28,2.1228]
[1732083712077,1.0,235.36,235.29,21.3251168]
[1732083712281,1.0,235.36,235.3,4.65986266]
[1732083712482,3.22,235.35,235.31,4.65986266]
[1732083712681,3.22,235.35,235.32,4.65986266]
[1732083712881,3.22,235.35,235.33,4.65986266]
[1732083713085,3.22,235.35,235.34,1.7903925]
[1732083713386,3.22,235.35,235.34,4.67337115]
[1732083715080,3.1221,235.36,235.34,4.67337115]
[1732083715282,3.1221,235.36,235.35,4.67337115]
[1732083715486,6.3421,235.36,235.35,4.67337115]
[1732083715688,3.1221,235.36,235.35,4.67337115]
[1732083715890,6.3421,235.36,235.35,4.67337115]
[1732083716185,6.3421,235.36,235.28,2.1228]
[1732083716380,6.3421,235.36,235.29,20.0749002]
[1732083716590,2.1222,235.35,235.3,20.0749002]
[1732083716886,2.1222,235.35,235.31,15.67737935]
[1732083717082,2.1222,235.35,235.32,10.46283562]
[1732083717389,2.1222,235.35,235.33,10.46283562]
[1732083717583,2.1222,235.35,235.34,7.72099575]
[1732083717779,2.1222,235.35,235.34,7.69151157]
[1732083718082,5.3422,235.35,235.34,7.69151157]
[1732083718279,5.3422,235.35,235.34,3.25908983]
[1732083718480,226.50807171,235.43,235.34,13.65699946]
[1732083718688,300.82308964,235.56,235.32,10.39790963]
[1732083718689,10.39790963,235.6,235.42,10.39790963]
[1732083718889,3.22,235.59,235.46,10.39790963]
[1732083719080,2.1203,235.57,235.49,12.51880963]
[1732083719285,2.1203,235.57,235.5,3.25619529]
[1732083719583,4.22,235.58,235.51,3.25000375]
[1732083719787,4.22,235.58,235.52,3.25000375]
[1732083719788,2.1204,235.55,235.52,3.25000375]
[1732083719980,2.1204,235.55,235.49,10.39790963]
[1732083720179,2.1204,235.55,235.5,3.24939308]
[1732083720384,2.1204,235.55,235.51,3.24939308]
[1732083720584,2.1205,235.54,235.52,3.24939308]
[1732083720886,2.1205,235.54,235.45,2.1213]
[1732083721089,2.1208,235.52,235.46,11.11876921]
[1732083721283,3.22,235.51,235.47,11.11876921]
[1732083721482,3.22,235.51,235.48,3.25043195]
[1732083721788,3.22,235.51,235.49,3.25043195]
[1732083721987,3.22,235.51,235.5,3.25043195]
[1732083722293,3.22,235.51,235.45,2.1213]
[1732083722491,3.22,235.51,235.46,8.44105104]
[1732083722685,3.22,235.51,235.47,3.24655809]
[1732083722881,3.22,235.51,235.48,3.24655809]
[1732083723091,3.22,235.51,235.49,3.24655809]
[1732083723289,3.22,235.51,235.4,16.61177211]
[1732083723486,3.22,235.51,235.41,15.36018266]
[1732083723792,3.22,235.51,235.42,11.09938941]
[1732083723989,3.22,235.51,235.43,11.09938941]
[1732083724194,3.22,235.51,235.44,11.09938941]
[1732083724487,3.22,235.51,235.45,3.24476678]
[1732083724695,3.22,235.51,235.42,2.1215]
[1732083724894,3.22,235.51,235.46,3.24583493]
[1732083725085,3.22,235.51,235.43,3.24583493]
[1732083725290,2.1209,235.5,235.44,3.24492768]
[1732083725486,2.1209,235.5,235.45,3.24492768]
[1732083725692,2.1209,235.5,235.42,2.1215]
[1732083725895,2.1209,235.5,235.43,3.24704269]
[1732083726090,2.1209,235.5,235.44,3.24704269]
[1732083726295,2.1209,235.5,235.45,3.24704269]
[1732083726496,2.1209,235.5,235.42,2.1215]
[1732083726690,2.1209,235.5,235.43,3.24828345]
[1732083726892,2.1209,235.5,235.44,3.24828345]
[1732083727095,2.1209,235.5,235.42,2.1215]
[1732083727296,2.1209,235.5,235.43,3.24755919]
[1732083727600,2.1209,235.5,235.42,2.1215]
[1732083727789,2.1209,235.5,235.43,3.2482687]
[1732083727987,2.1209,235.5,235.42,2.1215]
[1732083728798,2.1209,235.5,235.43,2.1215]
[1732083729203,3.22,235.51,235.41,2.4717]
[1732083729605,3.22,235.5,235.41,2.4717]
[1732083730603,5.3409,235.5,235.44,2.1214]
[1732083730798,1.0,235.58,235.42,16.61177211]
[1732083731003,1.0,235.58,235.46,16.61177211]
[1732083731305,2.1202,235.57,235.5,2.1208]
[1732083734301,1.0,235.58,235.46,16.61177211]
[1732083734505,1.0,235.58,235.48,2.121]
[1732083734996,1.0,235.58,235.49,2.1209]
[1732083734997,2.1204,235.55,235.49,2.1209]
[1732083735604,2.1204,235.55,235.47,2.1211]
[1732083735801,2.1204,235.55,235.46,16.61177211]
[1732083736811,3.12,235.54,235.46,16.61177211]
[1732083737303,3.12,235.54,235.49,2.1209]
[1732083738205,3.12,235.54,235.46,16.61177211]
[1732083738414,2.1206,235.53,235.46,16.61177211]
[1732083738705,3.12,235.54,235.41,2.4717]
[1732083738901,2.121,235.49,235.41,2.4717]
[1732083739104,3.12,235.54,235.41,2.4717]
[1732083739310,2.1207,235.52,235.46,2.1212]
[1732083739910,2.1208,235.51,235.46,2.1212]
[1732083740207,3.12,235.54,235.41,2.4717]
[1732083740707,3.12,235.54,235.43,10.38371927]
[1732083741010,2.1209,235.5,235.43,10.38371927]
[1732083742201,2.1209,235.5,235.45,2.1213]
[1732083746808,2.1209,235.51,235.41,4.5934]
[1732083747109,10.38371927,235.52,235.41,4.5934]
[1732083747306,10.38371927,235.52,235.4,2.1217]
[1732083747307,2.1211,235.47,235.4,2.1217]
[1732083747513,5.29423166,235.46,235.4,2.1217]
[1732083747707,3.12,235.45,235.4,2.1217]
[1732083747915,3.12,235.44,235.4,2.1217]
[1732083748112,3.12,235.43,235.41,2.1216]
[1732083748818,3.12,235.43,235.4,2.1218]
[1732083749513,3.12,235.43,235.4,2.1217]
[1732083750816,3.12,235.43,235.41,2.1217]
[1732083751013,3.12,235.43,235.36,1.2746]
[1732083751014,1.0,235.51,235.4,10.38371927]
[1732083751214,3.08951307,235.51,235.43,10.38371927]
[1732083751419,2.121,235.49,235.44,2.1213]
[1732083751619,4.28185504,235.49,235.44,2.1213]
[1732083751819,2.16085504,235.49,235.4,10.38371927]
[1732083752019,2.16085504,235.49,235.43,2.1215]
[1732083752721,1.0,235.51,235.46,10.38371927]
[1732083752920,2.94,235.5,235.46,12.50491927]
[1732083753312,2.94,235.49,235.46,12.50491927]
[1732083753619,2.94,235.49,235.47,2.1211]
[1732083755524,2.94,235.49,235.45,2.1213]
[1732083755721,2.94,235.49,235.43,10.38371927]
[1732083756514,2.94,235.49,235.44,2.1213]
[1732083756823,2.94,235.49,235.43,10.38371927]
[1732083757524,2.94,235.48,235.43,10.38371927]
[1732083758220,2.94,235.47,235.46,2.1212]
[1732083759825,2.94,235.47,235.44,2.1214]
[1732083760122,2.94,235.47,235.42,10.38371927]
[1732083761229,2.94,235.47,235.45,2.1213]
[1732083762418,2.94,235.47,235.42,10.38371927]
[1732083762419,2.94,235.47,235.46,2.1212]
[1732083762814,2.94,235.47,235.45,10.38371927]
[1732083763720,2.94,235.47,235.46,2.1212]
[1732083765124,1.0,235.51,235.48,2.121]
[1732083765325,2.94,235.5,235.48,2.121]
[1732083769922,2.94,235.5,235.46,2.1212]
[1732083770527,2.94,235.5,235.45,10.38371927]
[1732083770728,2.94,235.5,235.47,6.64511663]
[1732083771226,2.94,235.5,235.45,2.1212]
[1732083771424,2.4974,235.61,235.45,6.64511663]
[1732083771629,6.64511663,235.58,235.45,6.64511663]
[1732083771936,6.64511663,235.58,235.46,2.1212]
[1732083772626,1.0,235.57,235.46,2.1212]
[1732083773231,2.1208,235.51,235.46,2.1212]
[1732083773432,2.94,235.5,235.48,6.64511663]
[1732083776931,1.0,235.57,235.48,8.76611663]
[1732083776932,2.1206,235.54,235.48,8.76611663]
[1732083777133,2.94,235.53,235.51,6.64511663]
[1732083778827,2.07063679,235.55,235.51,6.64511663]
[1732083779029,2.76,235.54,235.53,6.64511663]
[1732083780236,2.76,235.54,235.51,2.1207]
[1732083780437,2.76,235.54,235.43,2.487]
[1732083780636,2.76,235.54,235.48,6.64511663]
[1732083781037,2.76,235.54,235.43,2.487]
[1732083781333,2.76,235.54,235.46,6.64511663]
[1732083781531,9.40511663,235.54,235.46,6.64511663]
[1732083781933,2.1209,235.5,235.46,6.64511663]
[1732083782129,6.64511663,235.52,235.36,1.2746]
[1732083782336,2.1209,235.5,235.43,6.64511663]
[1732083782531,6.64511663,235.52,235.43,6.64511663]
[1732083782837,2.76,235.54,235.42,2.1215]
[1732083783041,2.121,235.49,235.43,2.1215]
[1732083784240,1.0,235.53,235.43,2.1215]
[1732083784241,2.1211,235.48,235.43,2.1215]
[1732083784440,2.76,235.47,235.43,2.1215]
[1732083785143,2.76,235.46,235.43,2.1215]
[1732083785340,2.76,235.46,235.41,2.1216]
[1732083785540,2.76,235.46,235.37,11.63943877]
[1732083786140,2.1214,235.44,235.39,2.1218]
[1732083786946,2.16079182,235.43,235.39,2.1218]
[1732083787445,2.76,235.46,235.34,10.38673877]
[1732083787646,2.76,235.46,235.35,2.1222]
[1732083788245,2.1215,235.43,235.35,2.1222]
[1732083788546,2.14444581,235.43,235.35,2.1222]
[1732083788747,2.76,235.46,235.35,2.1222]
[1732083788943,2.1217,235.42,235.36,2.1221]
[1732083789142,4.28759451,235.42,235.36,2.1221]
[1732083789443,2.76,235.46,235.34,12.50903877]
[1732083789644,2.76,235.46,235.34,10.38673877]
[1732083790043,2.1218,235.4,235.34,10.38673877]
[1732083790338,2.76,235.39,235.31,10.38673877]
[1732083790537,2.76,235.38,235.28,10.38673877]